fUSD/lending_fUSD_20250106
["ID","MTS","AMOUNT","RATE_DAILY","PERIOD"]
[347828734,1736141437811,-500.0,9.999e-05,2]
[347828735,1736141437820,-500.0,9.999e-05,2]
[347828736,1736141437830,-500.0,9.999e-05,2]
[347828737,1736141437839,-500.0,9.999e-05,2]
[347828738,1736141437849,-3685.49577855,0.0001,2]
[347828739,1736141437858,-639.14982487,0.0001,2]
[347828740,1736141437868,-1542.0,0.0001,3]
[347828741,1736141437877,-9684.04898524,0.0001,2]
[347828742,1736141437889,-254.49377643,0.0001,2]
[347828743,1736141437901,-6951.0709305,0.0001,2]
[347828749,1736141439610,-777.12919889,0.0001,2]
[347828752,1736141440018,-13933.80590325,0.0001,2]
[347828769,1736141442524,-500.0,9.999e-05,2]
[347828770,1736141442534,-110.11895854,0.0001,2]
[347828774,1736141442546,-14868.01321538,0.0001,2]
[347828780,1736141442584,-3630.14560904,0.0001,2]
[347828782,1736141442595,-1234.04529754,0.0001,2]
[347828784,1736141442606,-320.19149989,0.0001,2]
[347828785,1736141442757,-2107.10044256,0.0001,2]
[347828786,1736141442816,-379.500005,0.0001,2]
[347828829,1736141445523,-500.0,9.999e-05,2]
[347828830,1736141445533,-5476.38310788,0.0001,2]
[347828831,1736141445544,-20442.4023024,0.0001,2]
[347828832,1736141445639,-316.270101,9.999e-05,2]
[347828833,1736141445705,-709.429899,9.999e-05,2]
[347828834,1736141445715,-214.39052261,0.0001,2]
[347828835,1736141445765,-385.0,0.0001,2]
[347828836,1736141445777,-162097.74617727,0.0001,2]
[347828837,1736141445786,-161.41,0.0001,2]
[347828838,1736141445796,-150.0,0.00010002,2]
[347828839,1736141445805,-150.0,0.00010006,2]
[347828840,1736141445814,-150.0,0.00010024,2]
[347828841,1736141445823,-255.0,0.00010035,2]
[347828842,1736141445833,-150.0,0.00010036,2]
[347828843,1736141445842,-4484.0929,0.00010037,2]
[347828844,1736141445851,-346.81416448,0.00010037,2]
[347828845,1736141445860,-2042.98532363,0.00010037,2]
[347828846,1736141445869,-189.83410809,0.00010037,2]
[347828847,1736141445878,-150.0,0.00010043,2]
[347828848,1736141445888,-150.0,0.00010062,2]
[347828849,1736141445897,-150.0,0.00010069,2]
[347828850,1736141445906,-150.0,0.00010081,2]
[347828851,1736141445917,-150.0,0.00010086,2]
[347828852,1736141445926,-150.0,0.00010099,2]
[347828853,1736141445935,-24284.0,0.0001011,2]
[347828854,1736141445945,-5263.0,0.0001011,2]
[347828855,1736141445955,-29377.0,0.0001011,2]
[347828856,1736141445964,-150.0,0.00010118,2]
[347828857,1736141445973,-4169.39695208,0.00010131,2]
[347828858,1736141445983,-42.23159296,0.00010135,2]
[347828861,1736141446022,-457.76840704,0.00010135,2]
[347828862,1736141446031,-500.0,0.00010135,2]
[347828863,1736141446040,-500.0,0.00010135,2]
[347828864,1736141446049,-500.0,0.00010135,2]
[347828865,1736141446058,-500.0,0.00010135,2]
[347828866,1736141446067,-500.0,0.00010135,2]
[347828867,1736141446076,-500.0,0.00010135,2]
[347828868,1736141446085,-500.0,0.00010135,2]
[347828869,1736141446094,-500.0,0.00010135,2]
[347828870,1736141446103,-462.33359853,0.00010135,2]
[347828871,1736141446112,-500.0,0.00010135,2]
[347828872,1736141446121,-500.0,0.00010135,2]
[347828873,1736141446130,-500.0,0.00010135,2]
[347828874,1736141446139,-500.0,0.00010135,2]
[347828875,1736141446348,-500.0,0.00010135,2]
[347828876,1736141446358,-500.0,0.00010135,2]
[347828877,1736141446368,-500.0,0.00010135,2]
[347828878,1736141446377,-500.0,0.00010135,2]
[347828879,1736141446386,-500.0,0.00010135,2]
[347828880,1736141446395,-500.0,0.00010135,2]
[347828881,1736141446404,-500.0,0.00010135,2]
[347828882,1736141446417,-500.0,0.00010135,2]
[347828883,1736141446426,-500.0,0.00010135,2]
[347828884,1736141446437,-500.0,0.00010135,2]
[347828885,1736141446446,-500.0,0.00010135,2]
[347828886,1736141446455,-500.0,0.00010135,2]
[347828887,1736141446464,-500.0,0.00010135,2]
[347828888,1736141446474,-500.0,0.00010135,2]
[347828889,1736141446483,-500.0,0.00010135,2]
[347828890,1736141446493,-500.0,0.00010135,2]
[347828891,1736141446502,-500.0,0.00010135,2]
[347828892,1736141446511,-500.0,0.00010135,2]
[347828893,1736141446520,-500.0,0.00010135,2]
[347828894,1736141446529,-500.0,0.00010135,2]
[347828895,1736141446539,-500.0,0.00010135,2]
[347828896,1736141446547,-500.0,0.00010135,2]
[347828897,1736141446556,-500.0,0.00010135,2]
[347828898,1736141446566,-500.0,0.00010135,2]
[347828899,1736141446575,-500.0,0.00010135,2]
[347828900,1736141446584,-500.0,0.00010135,2]
[347828901,1736141446593,-500.0,0.00010135,2]
[347828902,1736141446602,-500.0,0.00010135,2]
[347828903,1736141446611,-500.0,0.00010135,2]
[347828904,1736141446620,-500.0,0.00010135,2]
[347828905,1736141446631,-601.42,0.00010135,2]
[347828906,1736141446641,-500.0,0.00010135,2]
[347828907,1736141446650,-500.0,0.00010135,2]
[347828908,1736141446659,-500.0,0.00010135,2]
[347828909,1736141446668,-500.0,0.00010135,2]
[347828910,1736141446677,-500.0,0.00010135,2]
[347828911,1736141446686,-500.0,0.00010135,2]
[347828912,1736141446695,-580.48,0.00010135,2]
[347828913,1736141446704,-500.0,0.00010135,2]
[347828914,1736141446713,-500.0,0.00010135,2]
[347828915,1736141446723,-500.0,0.00010135,2]
[347828916,1736141446731,-500.0,0.00010135,2]
[347828917,1736141446741,-500.0,0.00010135,2]
[347828918,1736141446751,-500.0,0.00010135,2]
[347828919,1736141446760,-500.0,0.00010135,2]
[347828920,1736141446770,-816.55,0.00010135,2]
[347828921,1736141446779,-719.82,0.00010135,2]
[347828922,1736141446788,-502.74,0.00010135,2]
[347828923,1736141446797,-500.0,0.00010135,2]
[347828924,1736141446806,-569.44,0.00010135,2]
[347828925,1736141446815,-1333.81,0.00010135,2]
[347828926,1736141446824,-4833.11,0.00010135,2]
[347828927,1736141446833,-539.61,0.00010135,2]
[347828928,1736141446842,-500.0,0.00010135,2]
[347828929,1736141446851,-500.0,0.00010135,2]
[347828930,1736141446860,-500.0,0.00010135,2]
[347828931,1736141446869,-500.0,0.00010135,2]
[347828932,1736141446878,-500.0,0.00010135,2]
[347828933,1736141446887,-500.0,0.00010135,2]
[347828934,1736141446897,-564.37,0.00010135,2]
[347828935,1736141446906,-500.0,0.00010135,2]
[347828936,1736141446917,-1544.35,0.00010135,2]
[347828937,1736141446926,-500.0,0.00010135,2]
[347828938,1736141446935,-500.0,0.00010135,2]
[347828939,1736141446944,-500.0,0.00010135,2]
[347828940,1736141446954,-652.14,0.00010135,2]
[347828941,1736141446964,-1604.57,0.00010135,2]
[347828942,1736141446973,-1470.47,0.00010135,2]
[347828943,1736141446982,-500.0,0.00010135,2]
[347828944,1736141446992,-571.7,0.00010135,2]
[347828945,1736141447002,-500.0,0.00010135,2]
[347828946,1736141447011,-500.0,0.00010135,2]
[347828947,1736141447020,-2765.41,0.00010135,2]
[347828948,1736141447029,-3080.57,0.00010135,2]
[347828949,1736141447039,-500.0,0.00010135,2]
[347828950,1736141447048,-500.0,0.00010135,2]
[347828951,1736141447057,-747.5,0.00010135,2]
[347828952,1736141447066,-500.0,0.00010135,2]
[347828953,1736141447075,-500.0,0.00010135,2]
[347828954,1736141447084,-500.0,0.00010135,2]
[347828955,1736141447093,-500.0,0.00010135,2]
[347828956,1736141447102,-3574.74,0.00010135,2]
[347828957,1736141447111,-500.0,0.00010135,2]
[347828958,1736141447120,-500.0,0.00010135,2]
[347828959,1736141447129,-500.0,0.00010135,2]
[347828960,1736141447139,-1199.5,0.00010135,2]
[347828961,1736141447148,-500.0,0.00010135,2]
[347828962,1736141447157,-826.44,0.00010135,2]
[347828963,1736141447167,-500.0,0.00010135,2]
[347828964,1736141447177,-500.0,0.00010135,2]
[347828965,1736141447186,-500.0,0.00010135,2]
[347828966,1736141447195,-500.0,0.00010135,2]
[347828967,1736141447205,-1122.57,0.00010135,2]
[347828968,1736141447215,-500.0,0.00010135,2]
[347828969,1736141447224,-500.0,0.00010135,2]
[347828970,1736141447233,-500.0,0.00010135,2]
[347828971,1736141447242,-590.01,0.00010135,2]
[347828972,1736141447251,-781.45,0.00010135,2]
[347828973,1736141447260,-500.0,0.00010135,2]
[347828974,1736141447269,-500.0,0.00010135,2]
[347828975,1736141447278,-500.0,0.00010135,2]
[347828976,1736141447288,-555.3,0.00010135,2]
[347828977,1736141447297,-500.0,0.00010135,2]
[347828978,1736141447306,-500.0,0.00010135,2]
[347828979,1736141447315,-500.0,0.00010135,2]
[347828980,1736141447324,-500.0,0.00010135,2]
[347828981,1736141447333,-500.0,0.00010135,2]
[347828982,1736141447343,-166.649,0.00010136,2]
[347828983,1736141447352,-1080.783953,0.00010136,2]
[347828984,1736141447361,-160.254242,0.00010136,2]
[347828985,1736141447371,-155.918964,0.00010136,2]
[347828986,1736141447380,-1034.161188,0.00010136,2]
[347828987,1736141447389,-603.61248577,0.00010136,2]
[347828988,1736141447398,-500.0,0.00010136,2]
[347828989,1736141447408,-500.0,0.00010136,2]
[347828990,1736141447417,-500.0,0.00010136,2]
[347828991,1736141447427,-500.0,0.00010136,2]
[347828992,1736141447436,-500.0,0.00010136,2]
[347828993,1736141447446,-500.0,0.00010136,2]
[347828994,1736141447455,-500.0,0.00010136,2]
[347828995,1736141447464,-500.0,0.00010136,2]
[347828996,1736141447473,-500.0,0.00010136,2]
[347828997,1736141447483,-1810.97,0.00010136,2]
[347828998,1736141447493,-500.0,0.00010136,2]
[347828999,1736141447502,-817.65,0.00010136,2]
[347829000,1736141447511,-502.56332244,0.00010136,2]
[347829001,1736141447521,-500.0,0.00010136,2]
[347829002,1736141447530,-500.0,0.00010136,2]
[347829003,1736141447540,-765.35,0.00010136,2]
[347829004,1736141447550,-500.0,0.00010136,2]
[347829005,1736141447559,-500.0,0.00010136,2]
[347829006,1736141447570,-500.0,0.00010136,2]
[347829007,1736141447580,-500.0,0.00010136,2]
[347829008,1736141447590,-500.0,0.00010136,2]
[347829009,1736141447600,-500.0,0.00010136,2]
[347829010,1736141447610,-3302.49,0.00010136,2]
[347829011,1736141447620,-264.75691643,0.00010136,2]
[347829012,1736141447630,-558.81,0.00010136,2]
[347829013,1736141447642,-500.0,0.00010136,2]
[347829014,1736141447652,-500.0,0.00010136,2]
[347829015,1736141447661,-500.0,0.00010136,2]
[347829016,1736141447671,-500.0,0.00010136,2]
[347829017,1736141447683,-500.0,0.00010136,2]
[347829018,1736141447692,-500.0,0.00010136,2]
[347829019,1736141447702,-500.0,0.00010136,2]
[347829020,1736141447714,-255.55713799,0.00010136,2]
[347829021,1736141447724,-500.0,0.00010136,2]
[347829022,1736141447733,-500.0,0.00010136,2]
[347829023,1736141447742,-500.0,0.00010136,2]
[347829024,1736141447751,-500.0,0.00010136,2]
[347829025,1736141447761,-500.0,0.00010136,2]
[347829026,1736141447770,-500.0,0.00010136,2]
[347829027,1736141447779,-157.141264,0.00010136,2]
[347829028,1736141447788,-391.00083882,0.00010136,2]
[347829029,1736141447798,-500.0,0.00010136,2]
[347829030,1736141447808,-541.52,0.00010136,2]
[347829031,1736141447817,-500.0,0.00010136,2]
[347829032,1736141447827,-500.0,0.00010136,2]
[347829033,1736141447836,-500.0,0.00010136,2]
[347829034,1736141447845,-500.0,0.00010136,2]
[347829035,1736141447854,-605.91,0.00010136,2]
[347829036,1736141447864,-500.0,0.00010136,2]
[347829037,1736141447873,-500.0,0.00010136,2]
[347829038,1736141447882,-500.0,0.00010136,2]
[347829039,1736141447891,-500.0,0.00010136,2]
[347829040,1736141447900,-500.0,0.00010136,2]
[347829041,1736141447910,-500.0,0.00010136,2]
[347829042,1736141447919,-2955.79,0.00010136,2]
[347829043,1736141447928,-500.0,0.00010136,2]
[347829044,1736141447938,-500.0,0.00010136,2]
[347829045,1736141447947,-500.0,0.00010136,2]
[347829046,1736141447956,-471.22094122,0.00010136,2]
[347829047,1736141447966,-500.0,0.00010136,2]
[347829048,1736141447975,-500.0,0.00010136,2]
[347829049,1736141447984,-500.0,0.00010136,2]
[347829050,1736141447994,-500.0,0.00010136,2]
[347829051,1736141448003,-500.0,0.00010136,2]
[347829052,1736141448013,-500.0,0.00010136,2]
[347829053,1736141448022,-500.0,0.00010136,2]
[347829054,1736141448032,-500.0,0.00010136,2]
[347829055,1736141448041,-501.42172822,0.00010136,2]
[347829056,1736141448051,-503.68419759,0.00010136,2]
[347829057,1736141448061,-500.0,0.00010136,2]
[347829058,1736141448071,-500.0,0.00010136,2]
[347829059,1736141448080,-500.0,0.00010136,2]
[347829060,1736141448089,-500.0,0.00010136,2]
[347829061,1736141448098,-500.0,0.00010136,2]
[347829062,1736141448108,-500.0,0.00010136,2]
[347829063,1736141448117,-514.9816122,0.00010136,2]
[347829064,1736141448126,-500.0,0.00010136,2]
[347829065,1736141448136,-878.92,0.00010136,2]
[347829066,1736141448146,-500.0,0.00010136,2]
[347829067,1736141448156,-500.0,0.00010136,2]
[347829068,1736141448166,-500.0,0.00010136,2]
[347829069,1736141448176,-172.58338853,0.00010136,2]
[347829070,1736141448186,-500.0,0.00010136,2]
[347829071,1736141448196,-500.0,0.00010136,2]
[347829072,1736141448206,-502.78501741,0.00010136,2]
[347829073,1736141448215,-500.0,0.00010136,2]
[347829074,1736141448225,-500.0,0.00010136,2]
[347829075,1736141448234,-172.09347775,0.00010136,2]
[347829076,1736141448243,-500.0,0.00010136,2]
[347829077,1736141448253,-500.0,0.00010136,2]
[347829078,1736141448262,-500.0,0.00010136,2]
[347829079,1736141448272,-500.0,0.00010136,2]
[347829080,1736141448281,-500.0,0.00010136,2]
[347829081,1736141448291,-500.0,0.00010136,2]
[347829082,1736141448301,-505.23983354,0.00010136,2]
[347829083,1736141448311,-500.0,0.00010136,2]
[347829084,1736141448321,-503.23209292,0.00010136,2]
[347829085,1736141448330,-500.0,0.00010136,2]
[347829086,1736141448340,-500.0,0.00010136,2]
[347829087,1736141448349,-539.39,0.00010136,2]
[347829088,1736141448358,-500.0,0.00010136,2]
[347829089,1736141448368,-500.0,0.00010136,2]
[347829090,1736141448377,-500.0,0.00010136,2]
[347829091,1736141448387,-762.74,0.00010136,2]
[347829092,1736141448398,-689.03,0.00010136,2]
[347829093,1736141448407,-500.0,0.00010136,2]
[347829094,1736141448419,-500.0,0.00010136,2]
[347829095,1736141448428,-296.09675034,0.00010136,2]
[347829096,1736141448437,-206.27300404,0.00010136,2]
[347829097,1736141448447,-500.0,0.00010136,2]
[347829098,1736141448457,-738.73,0.00010136,2]
[347829099,1736141448467,-385.51569332,0.00010136,2]
[347829100,1736141448478,-500.0,0.00010136,2]
[347829101,1736141448487,-500.0,0.00010136,2]
[347829102,1736141448497,-500.0,0.00010136,2]
[347829103,1736141448507,-500.0,0.00010136,2]
[347829104,1736141448518,-500.0,0.00010136,2]
[347829105,1736141448528,-500.0,0.00010136,2]
[347829106,1736141448539,-500.0,0.00010136,2]
[347829107,1736141448549,-500.0,0.00010136,2]
[347829108,1736141448560,-500.0,0.00010136,2]
[347829109,1736141448571,-500.0,0.00010136,2]
[347829110,1736141448583,-500.0,0.00010136,2]
[347829111,1736141448594,-500.0,0.00010136,2]
[347829112,1736141448604,-612.33952226,0.00010136,2]
[347829113,1736141448615,-500.0,0.00010136,2]
[347829114,1736141448628,-500.0,0.00010136,2]
[347829115,1736141448638,-500.0,0.00010136,2]
[347829116,1736141448648,-500.0,0.00010136,2]
[347829117,1736141448659,-500.0,0.00010136,2]
[347829118,1736141448673,-128.15031766,0.00010136,2]
[347829119,1736141448706,-371.84968234,0.00010136,2]
[347829120,1736141448716,-500.0,0.00010136,2]
[347829121,1736141448727,-500.0,0.00010136,2]
[347829122,1736141448738,-288.69377782,0.00010136,2]
[347829123,1736141448748,-500.0,0.00010136,2]
[347829124,1736141448757,-1160.69,0.00010136,2]
[347829125,1736141448767,-500.0,0.00010136,2]
[347829126,1736141448778,-500.51441926,0.00010136,2]
[347829127,1736141448787,-500.0,0.00010136,2]
[347829128,1736141448797,-6.57733724,0.00010136,2]
[347829129,1736141562509,219.29,0.0001961,120]
[347829134,1736141731319,1000.0,0.0001961,120]
[347829135,1736141761283,1500.0,0.0001961,120]
[347829136,1736141779514,2000.0,0.0001961,120]
[347829137,1736141828933,2500.0,0.0001961,120]
[347829144,1736142592452,366690.33516381,7.114e-05,2]
[347829149,1736142631736,-455.38,8.219e-05,2]
[347829150,1736142631747,-225.78117896,9.123e-05,2]
[347829151,1736142631756,-186.45787987,9.123e-05,2]
[347829152,1736142631766,-150.0,9.123e-05,2]
[347829153,1736142631776,-237.34901318,9.123e-05,2]
[347829154,1736142631785,-570.64,9.176e-05,2]
[347829155,1736142631794,-4045.94792199,9.215e-05,2]
[347829156,1736142631818,-1933.92207801,9.215e-05,2]
[347829157,1736142631828,-741.87,9.239e-05,2]
[347829158,1736142631838,-250.0,9.322e-05,2]
[347829159,1736142631848,-250.0,9.322e-05,2]
[347829160,1736142631857,-1000.0,9.442e-05,2]
[347829161,1736142631867,-250.0,9.51e-05,2]
[347829162,1736142631877,-501.0,9.534e-05,2]
[347829163,1736142631887,-7052.79,9.619e-05,2]
[347829164,1736142631897,-150.0,9.836e-05,2]
[347829165,1736142631906,-508.45,9.858e-05,2]
[347829166,1736142631916,-124.94008079,9.998e-05,2]
[347829167,1736142631928,-3709.30688129,9.998e-05,2]
[347829168,1736142631940,-532.11129087,9.998e-05,2]
[347829169,1736142631951,-378.98345466,9.998e-05,2]
[347829170,1736142631979,-601.7404142,9.998e-05,2]
[347829171,1736142631991,-2416.64387819,9.998e-05,2]
[347829172,1736142632001,-445.993,9.998e-05,2]
[347829173,1736142632011,-150.0,9.998e-05,2]
[347829174,1736142632020,-500.0,9.999e-05,2]
[347829175,1736142632029,-267.62817761,9.999e-05,2]
[347829176,1736142632040,-500.0,9.999e-05,2]
[347829177,1736142632051,-500.0,9.999e-05,2]
[347829178,1736142632062,-500.0,9.999e-05,2]
[347829179,1736142632071,-514.38615332,9.999e-05,2]
[347829180,1736142632081,-500.0,9.999e-05,2]
[347829181,1736142632091,-500.0,9.999e-05,2]
[347829182,1736142632101,-500.0,9.999e-05,2]
[347829183,1736142632110,-500.0,9.999e-05,2]
[347829184,1736142632120,-500.0,9.999e-05,2]
[347829185,1736142632130,-500.0,9.999e-05,2]
[347829186,1736142632140,-208.75940069,9.999e-05,2]
[347829187,1736142632149,-500.0,9.999e-05,2]
[347829188,1736142632159,-500.0,9.999e-05,2]
[347829189,1736142632168,-500.0,9.999e-05,2]
[347829190,1736142632179,-500.0,9.999e-05,2]
[347829191,1736142632188,-500.0,9.999e-05,2]
[347829192,1736142632197,-500.0,9.999e-05,2]
[347829193,1736142632207,-209.28865263,9.999e-05,2]
[347829194,1736142632216,-500.0,9.999e-05,2]
[347829195,1736142632225,-500.0,9.999e-05,2]
[347829196,1736142632234,-500.0,9.999e-05,2]
[347829197,1736142632243,-500.0,9.999e-05,2]
[347829198,1736142632253,-500.0,9.999e-05,2]
[347829213,1736142632262,-500.0,9.999e-05,2]
[347829214,1736142632501,-500.0,9.999e-05,2]
[347829215,1736142632513,-500.0,9.999e-05,2]
[347829216,1736142632522,-500.0,9.999e-05,2]
[347829217,1736142632532,-500.0,9.999e-05,2]
[347829218,1736142632542,-500.24652777,9.999e-05,2]
[347829219,1736142632551,-518.95,9.999e-05,2]
[347829220,1736142632561,-500.0,9.999e-05,2]
[347829221,1736142632571,-500.0,9.999e-05,2]
[347829222,1736142632580,-500.0,9.999e-05,2]
[347829223,1736142632590,-500.0,9.999e-05,2]
[347829224,1736142632600,-500.0,9.999e-05,2]
[347829225,1736142632610,-580.66,9.999e-05,2]
[347829226,1736142632619,-501.54563211,9.999e-05,2]
[347829227,1736142632630,-500.0,9.999e-05,2]
[347829228,1736142632639,-500.0,9.999e-05,2]
[347829229,1736142632649,-500.0,9.999e-05,2]
[347829230,1736142632659,-500.0,9.999e-05,2]
[347829231,1736142632669,-500.0,9.999e-05,2]
[347829232,1736142632680,-500.0,9.999e-05,2]
[347829233,1736142632689,-500.0,9.999e-05,2]
[347829234,1736142632699,-500.0,9.999e-05,2]
[347829235,1736142632709,-500.0,9.999e-05,2]
[347829236,1736142632719,-500.0,9.999e-05,2]
[347829237,1736142632729,-500.0,9.999e-05,2]
[347829238,1736142632739,-500.0,9.999e-05,2]
[347829239,1736142632749,-500.0,9.999e-05,2]
[347829240,1736142632759,-500.0,9.999e-05,2]
[347829241,1736142632768,-500.0,9.999e-05,2]
[347829242,1736142632777,-408.35143332,9.999e-05,2]
[347829243,1736142632802,-91.64856668,9.999e-05,2]
[347829244,1736142632811,-500.0,9.999e-05,2]
[347829245,1736142632820,-500.0,9.999e-05,2]
[347829246,1736142632830,-500.0,9.999e-05,2]
[347829247,1736142632840,-500.0,9.999e-05,2]
[347829248,1736142632849,-500.0,9.999e-05,2]
[347829249,1736142632858,-15.73515195,9.999e-05,2]
[347829250,1736142632907,-327.81729878,9.999e-05,2]
[347829251,1736142632928,-156.44754927,9.999e-05,2]
[347829252,1736142632937,-444.62217692,9.999e-05,2]
[347829258,1736142637634,-55.37782308,9.999e-05,2]
[347829259,1736142637644,-500.0,9.999e-05,2]
[347829260,1736142637653,-500.0,9.999e-05,2]
[347829261,1736142637663,-500.0,9.999e-05,2]
[347829262,1736142637673,-500.0,9.999e-05,2]
[347829263,1736142637682,-516.91,9.999e-05,2]
[347829264,1736142637691,-662.46,9.999e-05,2]
[347829265,1736142637701,-500.0,9.999e-05,2]
[347829266,1736142637710,-672.85,9.999e-05,2]
[347829267,1736142637720,-500.0,9.999e-05,2]
[347829268,1736142637729,-500.0,9.999e-05,2]
[347829269,1736142637739,-500.0,9.999e-05,2]
[347829270,1736142637748,-604.49716216,9.999e-05,2]
[347829271,1736142637757,-500.0,9.999e-05,2]
[347829272,1736142637767,-453.74269608,9.999e-05,2]
[347829273,1736142637776,-500.0,9.999e-05,2]
[347829274,1736142637786,-500.0,9.999e-05,2]
[347829275,1736142637795,-500.0,9.999e-05,2]
[347829276,1736142637803,-500.0,9.999e-05,2]
[347829277,1736142637819,-500.0,9.999e-05,2]
[347829278,1736142637829,-500.0,9.999e-05,2]
[347829279,1736142637840,-500.0,9.999e-05,2]
[347829280,1736142637850,-500.0,9.999e-05,2]
[347829281,1736142637860,-500.0,9.999e-05,2]
[347829282,1736142637869,-500.0,9.999e-05,2]
[347829283,1736142637880,-500.0,9.999e-05,2]
[347829284,1736142637890,-500.0,9.999e-05,2]
[347829285,1736142637899,-1133.16,9.999e-05,2]
[347829286,1736142637908,-500.0,9.999e-05,2]
[347829287,1736142637918,-847.74,9.999e-05,2]
[347829288,1736142637928,-500.0,9.999e-05,2]
[347829289,1736142637937,-302.26504729,9.999e-05,2]
[347829290,1736142637947,-500.0,9.999e-05,2]
[347829291,1736142637956,-1328.09,9.999e-05,2]
[347829292,1736142637969,-1074.08,9.999e-05,2]
[347829293,1736142637979,-530.08,9.999e-05,2]
[347829294,1736142637988,-1161.04,9.999e-05,2]
[347829295,1736142637998,-510.69986738,9.999e-05,2]
[347829296,1736142638008,-500.0,9.999e-05,2]
[347829297,1736142638018,-500.0,9.999e-05,2]
[347829298,1736142638028,-500.0,9.999e-05,2]
[347829299,1736142638040,-379.76588204,9.999e-05,2]
[347829300,1736142638051,-500.0,9.999e-05,2]
[347829301,1736142638060,-500.0,9.999e-05,2]
[347829302,1736142638070,-500.0,9.999e-05,2]
[347829303,1736142638080,-500.0,9.999e-05,2]
[347829304,1736142638090,-500.0,9.999e-05,2]
[347829305,1736142638100,-500.0,9.999e-05,2]
[347829306,1736142638110,-500.0,9.999e-05,2]
[347829307,1736142638119,-500.0,9.999e-05,2]
[347829308,1736142638130,-500.0,9.999e-05,2]
[347829309,1736142638140,-500.0,9.999e-05,2]
[347829310,1736142638150,-500.0,9.999e-05,2]
[347829311,1736142638159,-707.85,9.999e-05,2]
[347829312,1736142638169,-500.0,9.999e-05,2]
[347829313,1736142638179,-500.0,9.999e-05,2]
[347829314,1736142638188,-796.32,9.999e-05,2]
[347829315,1736142638197,-500.0,9.999e-05,2]
[347829316,1736142638207,-505.72942082,9.999e-05,2]
[347829317,1736142638216,-500.0,9.999e-05,2]
[347829318,1736142638226,-500.0,9.999e-05,2]
[347829319,1736142638235,-500.0,9.999e-05,2]
[347829320,1736142638245,-500.0,9.999e-05,2]
[347829321,1736142638254,-500.0,9.999e-05,2]
[347829322,1736142638264,-500.0,9.999e-05,2]
[347829323,1736142638273,-500.0,9.999e-05,2]
[347829324,1736142638283,-500.0,9.999e-05,2]
[347829325,1736142638292,-546.37,9.999e-05,2]
[347829326,1736142638301,-500.0,9.999e-05,2]
[347829327,1736142638311,-500.0,9.999e-05,2]
[347829328,1736142638320,-500.0,9.999e-05,2]
[347829329,1736142638329,-490.0,9.999e-05,2]
[347829330,1736142638338,-500.0,9.999e-05,2]
[347829331,1736142638348,-500.0,9.999e-05,2]
[347829332,1736142638357,-679.65,9.999e-05,2]
[347829333,1736142638366,-600.92,9.999e-05,2]
[347829334,1736142638376,-500.0,9.999e-05,2]
[347829335,1736142638385,-500.0,9.999e-05,2]
[347829336,1736142638395,-500.0,9.999e-05,2]
[347829337,1736142638404,-644.73,9.999e-05,2]
[347829338,1736142638414,-500.0,9.999e-05,2]
[347829339,1736142638423,-500.0,9.999e-05,2]
[347829340,1736142638433,-500.0,9.999e-05,2]
[347829341,1736142638443,-500.0,9.999e-05,2]
[347829342,1736142638452,-500.0,9.999e-05,2]
[347829343,1736142638461,-504.42110493,9.999e-05,2]